bitfinex-derivatives/quotes_SOLF0:USTF0_20251125
["timestamp","ask_amount","ask_price","bid_price","bid_amount"]
[1764050823456,0.18,138.36,138.35,0.04828794]
[1764050823740,0.23268521,138.37,138.35,2.93828794]
[1764050823940,0.05268521,138.37,138.35,2.93828794]
[1764050824139,0.18,138.36,138.35,0.04828794]
[1764050826052,0.23268521,138.37,138.35,2.93828794]
[1764050826253,0.18,138.36,138.35,0.04828794]
[1764050829651,0.18,138.36,138.3,2.89]
[1764050829855,0.18,138.34,138.3,2.89]
[1764050830754,0.05012012,138.33,138.32,2.89]
[1764050835355,6.5059,138.39,138.34,2.89]
[1764050835556,0.23,138.38,138.34,2.89]
[1764050836352,0.23,138.37,138.34,2.89]
[1764050836550,0.27837353,138.37,138.35,0.05243937]
[1764050836954,0.24,138.36,138.35,0.05243937]
[1764050870575,6.55497353,138.37,138.35,3.02243937]
[1764050877590,0.04837353,138.37,138.35,3.02243937]
[1764050878296,6.55487353,138.37,138.35,3.02243937]
[1764050880802,0.04837353,138.37,138.35,3.02243937]
[1764050881802,0.28,138.45,138.37,2.92]
[1764050881992,0.28,138.45,138.38,2.92]
[1764050882700,0.05088385,138.43,138.41,2.92]
[1764050884898,24.68,138.47,138.42,2.92]
[1764050885092,6.8312,138.49,138.42,2.92]
[1764050885695,24.68,138.51,138.4,101.1881]
[1764050885696,6.8301,138.51,138.44,2.92]
[1764050886003,0.04615427,138.49,138.47,2.92]
[1764050889100,0.04615427,138.49,138.46,0.04540877]
[1764050889101,0.37615427,138.49,138.46,2.96540877]
[1764050891203,0.04615427,138.49,138.46,2.96540877]
[1764050893102,0.37615427,138.49,138.46,2.96540877]
[1764050893611,0.04615427,138.49,138.46,2.96540877]
[1764050896407,0.04615427,138.49,138.46,9.46760877]
[1764050896615,26.7352053,138.54,138.47,2.92]
[1764050897110,6.8692,138.53,138.48,3.09]
[1764050897518,0.04992628,138.52,138.5,3.09]
[1764050902416,24.68,138.54,138.5,3.09]
[1764050902609,8.5531053,138.56,138.5,3.09]
[1764050902815,8.5531053,138.56,138.51,3.09]
[1764050903520,0.04628355,138.55,138.53,3.09]
[1764050916332,2.5252053,138.62,138.55,3.09]
[1764050916630,113.9829,138.67,138.55,3.09]
[1764050916631,2.0552053,138.64,138.56,3.09]
[1764050916828,2.5252053,138.64,138.56,3.09]
[1764050917029,0.47,138.63,138.56,3.09]
[1764050917233,6.54919532,138.61,138.59,3.1369251]
[1764050918139,0.05389532,138.61,138.59,3.1369251]
[1764050920033,6.54919532,138.61,138.59,3.1369251]
[1764050920930,7.01919532,138.61,138.59,3.1369251]
[1764050921129,6.54919532,138.61,138.59,3.1369251]
[1764050923241,0.05389532,138.61,138.59,3.1369251]
[1764050924547,6.54919532,138.61,138.59,3.1369251]
[1764050925737,0.47,138.6,138.59,0.0469251]
[1764050926642,7.01919532,138.61,138.59,0.0469251]
[1764050927542,2.5152053,138.6,138.59,0.0469251]
[1764050929445,6.54919532,138.61,138.59,0.0469251]
[1764050929446,7.00919532,138.61,138.59,0.0469251]
[1764050931046,7.00919532,138.61,138.59,3.0769251]
[1764050931047,6.54919532,138.61,138.59,3.0769251]
[1764050932340,7.00919532,138.61,138.59,0.0469251]
[1764050934839,0.46,138.6,138.59,0.0469251]
[1764050941952,0.47,138.58,138.56,43.03]
[1764050942249,0.47,138.58,138.53,3.0]
[1764050942451,0.47,138.58,138.52,40.0]
[1764050942640,0.47,138.55,138.52,3.0]
[1764050942951,0.52081407,138.55,138.52,3.05341447]
[1764050944051,7.01931407,138.55,138.52,3.05341447]
[1764050947051,6.4986,138.54,138.52,3.05341447]
[1764050952855,0.47,138.53,138.52,0.05341447]
[1764050953056,6.9686,138.54,138.52,0.05341447]
[1764050953960,6.9686,138.54,138.52,3.05341447]
[1764050954362,0.47,138.54,138.52,3.05341447]
[1764050960270,6.9687,138.54,138.52,3.05341447]
[1764050962262,0.47,138.53,138.52,0.05341447]
[1764050965967,6.9687,138.54,138.52,3.11341447]
[1764050966164,6.4987,138.54,138.52,3.11341447]
[1764050966365,6.9687,138.54,138.52,3.11341447]
[1764050969178,0.47,138.53,138.52,0.05341447]
[1764050969877,0.47,138.51,138.48,3.06]
[1764050970977,0.52262846,138.51,138.48,3.11060567]
[1764050971178,6.5004,138.5,138.48,3.11060567]
[1764050972978,0.05262846,138.51,138.48,43.11060567]
[1764050973178,0.05262846,138.51,138.49,3.06]
[1764050976286,6.55262846,138.51,138.49,3.06]
[1764050977381,0.05262846,138.51,138.49,3.06]
[1764050979081,0.05262846,138.51,138.49,43.06]
[1764050979280,0.05262846,138.51,138.5,3.06]
[1764050984891,0.05262846,138.51,138.5,43.06]
[1764050992797,6.9685,138.55,138.51,2.98]
[1764050992992,0.47,138.55,138.52,2.98]
[1764050993385,0.47,138.55,138.51,42.98]
[1764050993590,6.9686,138.54,138.52,2.98]
[1764050993796,7.01996253,138.54,138.52,3.02896413]
[1764050999698,0.52136253,138.54,138.52,3.02896413]
[1764050999903,6.499,138.53,138.52,3.02896413]
[1764051000306,6.969,138.53,138.52,3.02896413]
[1764051000503,6.969,138.53,138.52,0.04896413]
[1764051003603,0.42,138.49,138.47,40.0]
[1764051003812,0.42,138.49,138.47,43.05]
[1764051004111,6.5009,138.49,138.47,3.05]
[1764051004497,6.54707636,138.49,138.47,3.0975664]
[1764051005216,6.96707636,138.49,138.47,3.0975664]
[1764051005510,6.54707636,138.49,138.47,3.0975664]
[1764051005712,0.04617636,138.49,138.47,3.0975664]
[1764051008308,6.54707636,138.49,138.47,3.0975664]
[1764051008504,6.96707636,138.49,138.47,3.0975664]
[1764051011119,6.54707636,138.49,138.47,3.0975664]
[1764051015320,0.42,138.53,138.47,3.0975664]
[1764051015524,111.01631013,138.56,138.47,3.0975664]
[1764051015525,0.47,138.55,138.49,3.05]
[1764051016621,0.47,138.52,138.51,0.05203978]
[1764051017127,6.9695,138.52,138.51,0.05203978]
[1764051023834,6.9695,138.52,138.47,55.50484902]
[1764051023835,0.47,138.49,138.47,49.00304902]
[1764051024024,0.47,138.49,138.46,52.10304902]
[1764051024225,0.47,138.49,138.46,43.1]
[1764051024825,0.52386656,138.49,138.46,40.04894663]
[1764051025028,6.9714,138.48,138.46,40.04894663]
[1764051025423,0.47,138.47,138.46,40.04894663]
[1764051025629,0.47,138.47,138.46,0.04894663]
[1764051026031,0.47,138.45,138.43,3.1]
[1764051026434,0.47,138.47,138.43,3.1]
[1764051027022,0.04707183,138.46,138.44,0.05009591]
[1764051027228,0.04707183,138.46,138.44,3.15009591]
[1764051027732,0.51707183,138.46,138.44,3.15009591]
[1764051028231,0.04707183,138.46,138.44,3.15009591]
[1764051034431,0.04707183,138.46,138.45,3.1]
[1764051034633,0.04707183,138.46,138.45,43.1]
[1764051046445,0.51707183,138.46,138.45,40.0]
[1764051047747,0.04707183,138.46,138.45,43.12]
[1764051050246,0.04707183,138.46,138.45,3.12]
[1764051053954,0.51707183,138.46,138.45,3.12]
[1764051054948,0.04707183,138.46,138.45,3.12]
[1764051057352,0.51707183,138.46,138.45,3.12]
[1764051057554,7.01947183,138.46,138.44,2.98009591]
[1764051058153,6.54947183,138.46,138.44,2.98009591]
[1764051058352,0.04707183,138.46,138.44,2.98009591]
[1764051062054,6.54937183,138.46,138.44,2.98009591]
[1764051062356,7.01937183,138.46,138.44,2.98009591]
[1764051062758,6.54937183,138.46,138.44,2.98009591]
[1764051071273,0.04707183,138.46,138.44,2.98009591]
[1764051073868,0.04707183,138.46,138.45,2.93]
[1764051097400,0.47,138.5,138.46,3.09]
[1764051098402,0.05229509,138.49,138.46,3.09]
[1764051098801,0.52229509,138.49,138.46,3.09]
[1764051100002,0.05229509,138.49,138.46,3.09]
[1764051100196,0.52229509,138.49,138.46,3.09]
[1764051105104,0.05229509,138.49,138.46,3.09]
[1764051105411,0.05229509,138.49,138.48,3.09]
[1764051105602,0.47,138.54,138.48,3.09]
[1764051106198,0.47,138.54,138.5,3.09]
[1764051106599,0.04706021,138.53,138.51,3.13944751]
[1764051107008,0.51706021,138.53,138.51,3.13944751]
[1764051107509,0.04706021,138.53,138.51,3.13944751]
[1764051111299,0.51706021,138.53,138.51,3.13944751]
[1764051111603,0.51706021,138.53,138.47,46.5014]
[1764051111604,0.47,138.51,138.47,2.91]
[1764051112507,0.47,138.51,138.48,0.05433184]
[1764051113207,6.9705,138.5,138.48,0.05433184]
[1764051114113,0.47,138.49,138.48,0.05433184]
[1764051125923,0.47,138.47,138.44,3.01]
[1764051126910,0.51866516,138.47,138.44,3.06487246]
[1764051127117,7.02066516,138.47,138.44,3.06487246]
[1764051128915,0.47,138.46,138.44,3.06487246]
[1764051129226,0.47,138.45,138.44,0.05487246]
[1764051129630,0.47,138.45,138.41,3.01]
[1764051130024,0.47,138.43,138.41,3.01]
[1764051130420,0.47,138.43,138.39,3.01]
[1764051130725,0.52131429,138.42,138.4,0.04949668]
[1764051131127,0.47,138.41,138.4,0.04949668]
[1764051132326,6.9751,138.4,138.37,3.01]
[1764051133432,6.9751,138.4,138.37,3.06033332]
[1764051135034,0.47,138.39,138.37,3.06033332]
[1764051135932,6.9751,138.4,138.37,3.06033332]
[1764051136326,0.47,138.39,138.37,0.05033332]
[1764051136526,0.47,138.39,138.37,3.06033332]
[1764051141340,0.46,138.38,138.37,0.05033332]
[1764051160347,0.46,138.37,138.33,3.13]
[1764051160840,0.46,138.36,138.33,3.13]
[1764051161244,0.46,138.36,138.31,3.13]
[1764051161446,0.05464002,138.34,138.32,3.17916371]
[1764051161643,0.51464002,138.34,138.32,3.17916371]
[1764051162847,0.51464002,138.34,138.32,0.04916371]
[1764051163051,7.02254002,138.34,138.32,0.04916371]
[1764051163252,0.46,138.33,138.32,0.04916371]
[1764051163546,0.51464002,138.34,138.32,3.17916371]
[1764051171354,0.05464002,138.34,138.32,3.17916371]
[1764051172851,0.52464002,138.34,138.32,3.17916371]
[1764051175063,7.03264002,138.34,138.32,3.17916371]
[1764051175864,7.03264002,138.34,138.32,3.03916371]
[1764051178364,6.56264002,138.34,138.32,3.03916371]
[1764051178870,0.05464002,138.34,138.32,3.03916371]
[1764051179162,0.52464002,138.34,138.32,3.03916371]
[1764051180962,6.9784,138.33,138.32,0.04916371]
[1764051181865,0.05464002,138.34,138.32,3.18916371]
[1764051182066,0.52464002,138.34,138.32,3.18916371]
[1764051182766,7.03264002,138.34,138.32,3.18916371]
[1764051183566,0.52464002,138.34,138.32,3.18916371]
[1764051186071,7.03264002,138.34,138.32,3.18916371]
[1764051192179,0.47,138.33,138.32,0.04916371]
[1764051193487,6.56264002,138.34,138.3,3.14]
[1764051193488,0.47,138.31,138.3,3.14]
[1764051194088,6.9789,138.32,138.3,3.14]
[1764051194388,6.9789,138.32,138.3,3.19304882]
[1764051195089,6.5089,138.32,138.3,3.19304882]
[1764051198191,6.9789,138.32,138.3,3.19304882]
[1764051205294,0.47,138.31,138.3,3.19304882]
[1764051205500,6.9793,138.31,138.3,0.05304882]
[1764051207598,6.9793,138.31,138.3,3.07304882]
[1764051207796,0.52464002,138.34,138.3,3.07304882]
[1764051209097,0.05464002,138.34,138.3,3.07304882]
[1764051209801,0.05464002,138.34,138.32,3.02]
[1764051227404,0.51464002,138.34,138.32,3.02]
[1764051228310,0.05464002,138.34,138.32,3.02]
[1764051235314,0.51464002,138.34,138.32,3.02]
[1764051235524,0.46,138.33,138.31,3.15]
[1764051236412,7.03264002,138.34,138.31,3.15]
[1764051237318,0.47,138.33,138.31,3.15]
[1764051238320,6.56264002,138.34,138.31,3.15]
[1764051238521,7.03264002,138.34,138.31,3.15]
[1764051238721,0.52464002,138.34,138.31,3.15]
[1764051242517,0.47,138.33,138.3,0.05304882]
[1764051244024,0.47,138.31,138.3,0.05304882]
[1764051258944,0.05464002,138.34,138.3,3.12304882]
[1764051259142,0.53464002,138.34,138.3,3.12304882]
[1764051260041,6.9884,138.33,138.3,3.12304882]
[1764051260945,6.9889,138.32,138.3,3.12304882]
[1764051261145,0.48,138.31,138.3,0.05304882]
[1764051262150,0.48,138.31,138.3,3.12304882]
[1764051263047,6.9889,138.32,138.3,3.12304882]
[1764051263246,0.48,138.33,138.3,3.12304882]
[1764051264151,0.48,138.32,138.3,3.12304882]
[1764051264953,6.989,138.32,138.3,3.12304882]
[1764051268256,0.48,138.31,138.3,3.12304882]
[1764051268755,6.989,138.32,138.3,3.12304882]
[1764051282758,26.79628656,138.34,138.3,3.12304882]
[1764051282759,7.04284002,138.34,138.3,3.12304882]
[1764051283062,0.48,138.33,138.3,3.12304882]
[1764051284761,0.48,138.32,138.3,3.12304882]
[1764051285467,6.9884,138.33,138.3,3.12304882]
[1764051291958,0.47,138.32,138.3,3.12304882]
[1764051299178,6.9789,138.32,138.3,3.12304882]
[1764051300775,0.47,138.31,138.3,0.05304882]
[1764051300979,0.47,138.3,138.27,3.0]
[1764051301166,0.47,138.32,138.27,3.0]
[1764051301568,6.9789,138.32,138.27,3.0]
[1764051302271,0.52267289,138.31,138.29,3.0]
[1764051303375,0.05267289,138.31,138.29,3.0]
[1764051326304,7.03207289,138.31,138.29,3.0]
[1764051326904,6.56207289,138.31,138.29,3.0]
[1764051327810,0.05267289,138.31,138.29,3.0]
[1764051331314,24.68,138.36,138.3,3.14]
[1764051331518,24.68,138.36,138.31,3.14]
[1764051332015,31.1874,138.36,138.32,3.14]
[1764051332212,31.1874,138.36,138.33,0.05074167]
[1764051332213,0.05133929,138.35,138.33,0.05074167]
[1764051332406,0.05133929,138.35,138.34,3.14]
[1764051332606,0.57133929,138.35,138.34,3.14]
[1764051335908,0.05133929,138.35,138.34,3.14]
[1764051338013,25.2,138.39,138.34,3.14]
[1764051338318,0.57,138.38,138.34,3.14]
[1764051339003,0.62117915,138.37,138.33,0.05074167]
[1764051339414,3.79198542,138.35,138.33,0.05074167]
[1764051339615,0.57,138.34,138.33,0.05074167]
[1764051356429,7.0779,138.34,138.33,0.05074167]
[1764051365536,7.0779,138.34,138.28,6.74443242]
[1764051365537,0.57,138.3,138.28,3.02]
[1764051365729,0.57,138.3,138.27,3.02]
[1764051366431,0.57,138.28,138.25,9.76443242]
[1764051366640,0.57,138.28,138.25,0.0517394]
[1764051366641,0.57,138.27,138.25,0.0517394]
[1764051368040,0.57,138.26,138.25,0.0517394]
[1764051369231,0.57,138.24,138.21,3.02]
[1764051370234,0.6173561,138.24,138.21,3.06701865]
[1764051371238,7.1301561,138.24,138.21,3.06701865]
[1764051372139,0.57,138.23,138.19,3.02]
[1764051373142,0.62116471,138.22,138.2,3.07364856]
[1764051376142,0.57,138.21,138.2,0.05364856]
[1764051376342,0.57,138.2,138.16,3.02]
[1764051377038,0.57,138.2,138.12,3.15]
[1764051377244,0.57,138.2,138.14,3.15]
[1764051377542,0.63297479,138.18,138.16,0.04803043]
[1764051378133,7.14857479,138.18,138.16,0.04803043]
[1764051378334,0.58,138.17,138.16,0.04803043]
[1764051378940,6.56857479,138.18,138.16,3.19803043]
[1764051379142,0.58,138.17,138.16,0.04803043]
[1764051379545,0.58,138.17,138.11,3.15]
[1764051379546,0.58,138.16,138.11,3.15]
[1764051380441,0.58,138.15,138.11,3.15]
[1764051380746,0.05175702,138.14,138.11,3.15]
[1764051386336,0.63175702,138.14,138.11,3.15]
[1764051386537,7.14935702,138.14,138.11,3.15]
[1764051387753,7.098,138.13,138.11,3.15]
[1764051388148,0.58,138.12,138.09,3.15]
[1764051388343,0.04879858,138.12,138.09,3.15]
[1764051389446,0.62879858,138.12,138.09,3.15]
[1764051389652,0.04879858,138.12,138.09,3.15]
[1764051390343,0.58,138.11,138.09,3.15]
[1764051390852,7.14729858,138.12,138.09,3.15]
[1764051392254,6.56729858,138.12,138.09,3.15]
[1764051395152,0.04879858,138.12,138.09,3.15]
[1764051397661,0.62879858,138.12,138.09,3.15]
[1764051397860,0.04879858,138.12,138.09,3.15]
[1764051399150,24.7,138.17,138.1,3.15]
[1764051399364,24.7,138.17,138.11,3.15]
[1764051399749,25.32,138.17,138.11,3.15]
[1764051400253,0.04805153,138.15,138.14,3.15]
[1764051400453,0.66805153,138.15,138.13,0.04952172]
[1764051400859,6.56505153,138.15,138.13,3.19952172]
[1764051403665,0.04805153,138.15,138.13,3.19952172]
[1764051404164,6.56505153,138.15,138.13,3.19952172]
[1764051405170,7.18505153,138.15,138.13,3.19952172]
[1764051405974,6.56505153,138.15,138.13,3.19952172]
[1764051406471,0.04805153,138.15,138.13,3.19952172]
[1764051411085,24.72,138.21,138.13,3.19952172]
[1764051411378,25.38,138.21,138.14,3.14]
[1764051411572,25.38,138.21,138.15,3.14]
[1764051411780,25.38,138.21,138.16,3.14]
[1764051412182,0.04832272,138.2,138.18,3.14]
[1764051415779,128.07545837,138.27,138.19,3.14]
[1764051415780,6.5125,138.25,138.19,3.14]
[1764051416373,0.71,138.26,138.19,3.14]
[1764051416374,0.71,138.26,138.2,3.14]
[1764051416880,0.05020521,138.24,138.23,2.89]
[1764051417278,0.77020521,138.24,138.22,2.93690149]
[1764051417473,0.05020521,138.24,138.22,2.93690149]
[1764051424086,6.56290521,138.24,138.22,2.93690149]
[1764051428393,0.05020521,138.24,138.22,2.93690149]
[1764051431691,0.77020521,138.24,138.22,2.93690149]
[1764051432882,0.05020521,138.24,138.22,2.93690149]
[1764051435291,0.77,138.32,138.23,2.89]
[1764051435495,0.77,138.32,138.26,2.89]
[1764051436192,0.0538233,138.3,138.29,2.89]
[1764051446606,0.8238233,138.3,138.28,40.05377962]
[1764051447306,0.77,138.29,138.28,0.05377962]
[1764051448105,6.5637233,138.3,138.28,0.05377962]
[1764051448310,7.3337233,138.3,138.28,0.05377962]
[1764051449507,0.77,138.29,138.28,0.05377962]
[1764051471429,7.2803,138.29,138.28,0.05377962]
[1764051471929,0.77,138.28,138.24,3.18]
[1764051472227,0.77,138.25,138.22,3.17]
[1764051472425,0.77,138.25,138.2,3.17]
[1764051472826,7.2827,138.24,138.2,3.17]
[1764051473023,0.05140391,138.23,138.22,3.17]
[1764051482936,0.77,138.31,138.23,2.97]
[1764051483833,0.05473395,138.28,138.26,3.02157014]
[1764051487939,7.2787,138.33,138.26,3.02157014]
[1764051488137,24.7,138.35,138.27,2.97]
[1764051488138,25.53,138.35,138.27,2.97]
[1764051488837,25.53,138.35,138.28,6.5107]
[1764051489047,0.04557548,138.33,138.31,2.97]
[1764051493242,0.04557548,138.33,138.31,9.4792]
[1764051493443,0.04557548,138.33,138.32,2.97]
[1764051493744,0.87,138.38,138.32,2.97]
[1764051493947,0.87,138.37,138.32,2.97]
[1764051494742,0.91604627,138.36,138.33,3.02511035]
[1764051495243,0.87,138.35,138.33,0.05511035]
[1764051495740,0.87,138.35,138.29,42.97]
[1764051495741,0.87,138.34,138.29,2.97]
[1764051496837,0.87,138.32,138.3,0.04906372]
[1764051499844,0.04693492,138.33,138.3,2.94906372]
[1764051501242,0.87,138.4,138.31,6.12255433]
[1764051501541,111.08229855,138.43,138.31,6.12255433]
[1764051501542,101.1708,138.43,138.32,2.9]
[1764051501743,102.0908,138.43,138.32,2.9]
[1764051502134,0.92,138.42,138.32,2.9]
[1764051502440,0.05305762,138.39,138.37,2.9]
[1764051506255,0.97305762,138.39,138.36,0.05328651]
[1764051507137,0.97305762,138.39,138.36,2.95328651]
[1764051508053,7.47875762,138.39,138.36,2.95328651]
[1764051512254,7.4262,138.38,138.36,2.95328651]
[1764051514157,6.5062,138.38,138.36,2.95328651]
[1764051514347,0.05305762,138.39,138.36,2.95328651]
[1764051514548,0.97305762,138.39,138.36,2.95328651]
[1764051515659,7.47875762,138.39,138.36,2.95328651]
[1764051517762,0.05305762,138.39,138.36,2.95328651]
[1764051517954,25.62,138.44,138.37,2.9]
[1764051518655,24.7,138.44,138.38,2.9]
[1764051519156,0.04819783,138.42,138.41,2.9]
[1764051519356,0.04819783,138.42,138.4,2.95255348]
[1764051532165,0.97,138.46,138.41,2.95]
[1764051533076,7.4726,138.46,138.41,2.95]
[1764051533375,1.01797722,138.45,138.41,2.95]
[1764051533671,0.97,138.44,138.41,2.95]
[1764051534671,2.10760931,138.45,138.41,2.95]
[1764051534871,3.07760931,138.45,138.41,2.95]
[1764051535369,7.52077722,138.45,138.41,2.95]
[1764051535569,0.04797722,138.45,138.41,2.95]
[1764051536166,1.01797722,138.45,138.41,2.95]
[1764051537075,0.97,138.44,138.4,3.08255348]
[1764051538074,6.5038,138.43,138.4,3.08255348]
[1764051538479,7.4738,138.43,138.4,3.08255348]
[1764051538674,3.02963209,138.41,138.4,0.05255348]
[1764051540768,3.02963209,138.41,138.34,6.5078]
[1764051540769,6.5054,138.4,138.34,3.03]
[1764051541067,0.97,138.39,138.34,3.03]
[1764051541468,9.53463209,138.41,138.34,3.03]
[1764051541971,0.04883371,138.39,138.37,3.03]
[1764051542475,1.01883371,138.39,138.37,3.03]
[1764051542778,0.97,138.38,138.36,0.04967355]
[1764051544274,3.02963209,138.37,138.36,0.04967355]
[1764051560998,0.97,138.35,138.32,3.03]
[1764051561998,0.97,138.35,138.32,3.0796631]
[1764051562202,1.02273127,138.35,138.32,3.0796631]
[1764051562889,0.97,138.34,138.32,2.9296631]
[1764051563093,7.53023127,138.35,138.32,2.9296631]
[1764051563895,0.05273127,138.35,138.32,2.9296631]
[1764051567200,0.00273127,138.35,138.32,4.98929519]
[1764051567399,0.00273127,138.35,138.33,2.88]
[1764051568804,0.00273127,138.35,138.33,9.3884]
[1764051569004,0.00273127,138.35,138.34,2.88]
[1764051573002,1.02,138.4,138.35,2.88]
[1764051573905,1.06714881,138.39,138.36,2.93522105]
[1764051574096,7.57284881,138.39,138.36,2.93522105]
[1764051578204,1.06714881,138.39,138.36,2.93522105]
[1764051578408,0.04714881,138.39,138.36,2.93522105]
[1764051579318,1.06714881,138.39,138.36,2.93522105]
[1764051580208,7.57274881,138.39,138.36,2.93522105]
[1764051580614,1.02,138.38,138.36,0.05522105]
[1764051580817,1.02,138.38,138.36,2.93522105]
[1764051581407,1.02,138.37,138.36,0.05522105]
[1764051585013,7.5261,138.38,138.36,0.05522105]
[1764051585720,7.5261,138.38,138.36,2.93522105]
[1764051586021,6.5061,138.38,138.36,2.93522105]
[1764051588825,1.06714881,138.39,138.36,2.93522105]
[1764051594432,7.57274881,138.39,138.36,2.93522105]
[1764051595435,1.02,138.38,138.36,2.93522105]
[1764051597429,1.02,138.37,138.36,0.05522105]
[1764051601842,0.96,138.34,138.28,2.88]
[1764051602336,0.96,138.32,138.28,2.88]
[1764051602730,0.96,138.3,138.29,0.05349331]
[1764051603746,0.96,138.3,138.24,9.00304902]
[1764051603747,0.96,138.3,138.24,2.88]
[1764051604742,0.96,138.3,138.26,2.93240432]
[1764051604943,1.01246934,138.29,138.26,2.93240432]
[1764051605434,0.05246934,138.29,138.26,2.93240432]
[1764051613137,1.01246934,138.29,138.26,0.05240432]
[1764051613447,0.96,138.27,138.26,0.05240432]
[1764051614944,0.96,138.26,138.22,42.88]
[1764051615245,0.96,138.26,138.2,2.88]
[1764051616052,0.04611308,138.24,138.22,2.92562863]
[1764051616443,1.00611308,138.24,138.22,0.04562863]
[1764051616649,1.00611308,138.24,138.17,2.88]
[1764051616846,0.96,138.24,138.17,2.88]
[1764051617548,1.02187131,138.22,138.19,0.05217596]
[1764051618055,7.53557131,138.22,138.19,0.05217596]
[1764051618939,1.02187131,138.22,138.19,0.05217596]
[1764051619145,1.02187131,138.22,138.19,2.96217596]
[1764051623959,0.05187131,138.22,138.19,2.96217596]
[1764051630859,0.05187131,138.22,138.19,9.47697596]
[1764051631061,6.5121,138.26,138.19,42.96217596]
[1764051631260,6.5121,138.26,138.2,2.91]
[1764051631559,7.5321,138.26,138.2,2.91]
[1764051631959,0.05385635,138.24,138.2,2.91]
[1764051635170,0.05385635,138.24,138.2,42.91]
[1764051635370,0.05385635,138.24,138.21,2.91]
[1764051639378,1.07385635,138.24,138.21,2.91]
[1764051640873,0.05385635,138.24,138.21,2.91]
[1764051643572,0.05385635,138.24,138.22,2.91]
[1764051643772,1.02,138.31,138.23,2.91]
[1764051643977,1.07,138.33,138.25,2.91]
[1764051644173,1.07,138.33,138.27,2.91]
[1764051644381,2.06353057,138.34,138.27,2.91]
[1764051644382,7.579,138.32,138.27,2.91]
[1764051644775,0.05543453,138.31,138.28,2.95646609]
[1764051645379,1.12543453,138.31,138.28,2.95646609]
[1764051645569,1.07,138.3,138.28,0.04646609]
[1764051645877,6.56493453,138.31,138.28,2.95646609]
[1764051646080,7.63493453,138.31,138.28,2.95646609]
[1764051646475,0.05543453,138.31,138.28,2.95646609]
[1764051650783,0.05543453,138.31,138.29,3.1]
[1764051659891,8.57083057,138.36,138.29,9.6102]
[1764051660097,3.18353057,138.36,138.3,2.89]
[1764051660389,1.12,138.35,138.3,2.89]
[1764051660778,1.12,138.33,138.3,2.89]
[1764051660995,1.1717175,138.33,138.3,2.94224575]
[1764051663687,1.1717175,138.33,138.3,0.05224575]
[1764051663688,1.12,138.31,138.3,0.05224575]
[1764051665783,1.12,138.29,138.24,2.89]
[1764051665990,1.12,138.27,138.24,2.89]
[1764051666888,1.17254282,138.27,138.24,2.93956623]
[1764051667089,7.68384282,138.27,138.24,2.93956623]
[1764051667686,0.05254282,138.27,138.24,2.93956623]
[1764051672199,1.17254282,138.27,138.24,2.93956623]
[1764051674700,0.05254282,138.27,138.24,2.93956623]
[1764051681507,6.56384282,138.27,138.24,2.93956623]
[1764051681806,1.17254282,138.27,138.24,2.93956623]
[1764051683110,6.5118,138.26,138.24,2.93956623]
[1764051685408,1.12,138.25,138.24,0.04956623]
[1764051685605,7.6318,138.26,138.24,0.04956623]
[1764051687009,7.6318,138.26,138.24,2.91956623]
[1764051687313,0.05254282,138.27,138.24,2.91956623]
[1764051688409,6.56384282,138.27,138.24,2.91956623]
[1764051688619,1.12,138.26,138.24,0.04956623]
[1764051688802,1.12,138.25,138.24,0.04956623]
[1764051690120,8.57523057,138.26,138.24,2.91956623]
[1764051690424,9.69523057,138.26,138.24,2.91956623]
[1764051691212,0.05254282,138.27,138.24,2.91956623]
[1764051691412,1.17254282,138.27,138.24,2.91956623]
[1764051691819,0.05254282,138.27,138.24,2.91956623]
[1764051692816,6.56374282,138.27,138.24,2.91956623]